bitfinex-derivatives/quotes_BNBF0:USTF0_20250523
["timestamp","ask_amount","ask_price","bid_price","bid_amount"]
[1748029192418,1.55018973,667.19,666.59,1.12125645]
[1748029192623,1.55018638,667.18,666.59,1.12125645]
[1748029192922,1.55018638,667.17,666.59,1.12125645]
[1748029193116,1.55018765,667.16,666.59,1.12125645]
[1748029193317,1.55018765,667.15,666.59,1.12125645]
[1748029193522,1.55018765,667.14,666.59,1.12125645]
[1748029193721,1.55018765,667.13,666.59,1.12125645]
[1748029193922,1.55018765,667.12,666.59,1.12125645]
[1748029194121,1.07294634,667.11,666.59,1.12125645]
[1748029194321,1.378,667.16,666.59,1.12125645]
[1748029194522,1.07300989,667.15,666.59,1.12125645]
[1748029194817,1.378,667.16,666.59,1.12125645]
[1748029195022,1.07303991,667.15,666.59,1.12125645]
[1748029195321,1.378,667.16,666.59,1.12125645]
[1748029195523,1.378,667.16,666.65,1.12125645]
[1748029198924,1.378,667.16,666.66,1.12125645]
[1748029200426,1.07274938,667.15,666.66,1.12125645]
[1748029200621,1.378,667.16,666.66,1.12125645]
[1748029200818,1.07274605,667.15,666.66,1.12125645]
[1748029201021,1.378,667.16,666.66,1.12125645]
[1748029201325,1.07272547,667.15,666.64,1.12125645]
[1748029201527,1.378,667.16,666.64,1.12125645]
[1748029201726,1.07273307,667.15,666.64,1.12125645]
[1748029201926,1.378,667.16,666.64,1.12125645]
[1748029202225,1.07271052,667.15,666.64,1.12125645]
[1748029202426,1.378,667.16,666.64,1.12125645]
[1748029202726,1.07269832,667.15,666.64,1.12125645]
[1748029202926,1.378,667.16,666.64,1.12125645]
[1748029203121,1.07270404,667.15,666.64,1.12125645]
[1748029203325,1.378,667.16,666.64,1.12125645]
[1748029203626,1.07268381,667.15,666.64,1.12125645]
[1748029203825,1.378,667.16,666.64,1.12125645]
[1748029204021,1.07281599,667.15,666.64,1.12125645]
[1748029204221,1.378,667.16,666.64,1.12125645]
[1748029204425,1.07287653,667.15,666.64,1.12125645]
[1748029204627,1.378,667.16,666.64,1.12125645]
[1748029204819,1.072964,667.15,666.64,1.12125645]
[1748029205023,1.378,667.16,666.64,1.12125645]
[1748029205224,1.07296915,667.15,666.64,1.12125645]
[1748029205424,1.378,667.16,666.64,1.12125645]
[1748029205823,1.0730133,667.15,666.64,1.12125645]
[1748029206029,1.378,667.16,666.64,1.12125645]
[1748029206328,1.07302533,667.15,666.64,1.12125645]
[1748029206528,1.378,667.16,666.64,1.12125645]
[1748029206728,1.07298486,667.15,666.64,1.12125645]
[1748029206930,1.378,667.16,666.64,1.12125645]
[1748029207231,1.07297429,667.15,666.65,1.12125645]
[1748029207424,1.07296188,667.14,666.65,1.12125645]
[1748029207624,1.378,667.16,666.65,1.12125645]
[1748029207825,1.07296188,667.15,666.65,1.12125645]
[1748029208026,1.378,667.16,666.65,1.12125645]
[1748029208228,1.0729712,667.15,666.65,1.12125645]
[1748029208428,1.0729712,667.14,666.65,1.12125645]
[1748029208728,1.378,667.16,666.65,1.12125645]
[1748029208926,1.07293201,667.15,666.65,1.12125645]
[1748029209132,1.07293201,667.14,666.65,1.12125645]
[1748029209334,1.378,667.16,666.65,1.12125645]
[1748029209634,1.5501136,667.15,666.65,1.12125645]
[1748029209934,1.5501136,667.14,666.65,1.12125645]
[1748029210234,1.5501136,667.13,666.56,1.12125645]
[1748029210432,1.5501136,667.12,666.56,1.12125645]
[1748029210634,1.54990419,667.11,666.56,1.12125645]
[1748029210834,1.54990419,667.1,666.56,1.12125645]
[1748029211027,1.54990419,667.09,666.56,1.12125645]
[1748029211228,1.54990419,667.08,666.56,1.12125645]
[1748029211529,1.54990419,667.07,666.56,1.12125645]
[1748029211729,1.54990419,667.06,666.56,1.12125645]
[1748029212032,1.54990419,667.05,666.56,1.12125645]
[1748029212229,1.07273107,667.04,666.56,1.12125645]
[1748029212436,1.07273107,667.03,666.49,1.12125645]
[1748029212629,1.07273107,667.02,666.49,1.12125645]
[1748029212830,1.07273107,667.01,666.49,1.12125645]
[1748029213040,1.07273107,667.0,666.49,1.12125645]
[1748029213335,1.07239525,666.99,666.49,1.12125645]
[1748029213537,1.11920745,667.11,666.49,1.12125645]
[1748029213735,1.5493712,667.1,666.49,1.12125645]
[1748029214034,1.5493712,667.09,666.49,1.12125645]
[1748029214235,1.54922721,667.08,666.49,1.12125645]
[1748029214434,1.54922721,667.07,666.49,1.12125645]
[1748029214629,1.11920745,667.04,666.48,1.12125645]
[1748029214834,1.54922721,667.03,666.48,1.12125645]
[1748029215039,1.07229487,667.02,666.48,1.12125645]
[1748029215231,1.07229487,667.01,666.48,1.12125645]
[1748029215430,1.07229487,667.0,666.21,2.24251291]
[1748029215634,1.07235487,666.99,665.5,0.30052592]
[1748029216036,1.5493289,667.62,665.5,0.30052592]
[1748029216338,0.29958058,667.6,665.5,0.30052592]
[1748029216536,1.54932975,667.59,665.5,0.30052592]
[1748029216837,0.29959405,667.57,665.5,0.30052592]
[1748029217035,1.54932975,667.56,665.5,0.30052592]
[1748029217237,0.29960751,667.54,665.5,0.30052592]
[1748029217435,1.54932975,667.53,665.5,0.30052592]
[1748029217633,0.29962097,667.51,665.5,0.30052592]
[1748029217832,1.11989838,667.05,666.48,1.12108196]
[1748029218034,1.54932975,667.04,666.48,1.12108196]
[1748029218232,1.54932975,667.03,666.48,1.12108196]
[1748029218439,1.54932975,667.02,666.48,1.12108196]
[1748029218739,1.54932975,667.01,666.48,1.12108196]
[1748029218938,1.54932975,667.0,666.48,1.12108196]
[1748029219238,1.54932975,666.99,666.48,1.12108196]
[1748029219439,1.11989838,667.05,666.48,1.12108196]
[1748029219440,1.54932975,666.98,666.48,1.12108196]
[1748029219735,1.54932975,666.97,666.48,1.12108196]
[1748029219938,1.54932975,666.96,666.48,1.12108196]
[1748029220135,1.07237408,666.95,666.38,1.12108196]
[1748029220333,1.07237408,666.94,666.38,1.12108196]
[1748029220532,1.07237408,666.93,666.38,1.12108196]
[1748029220734,1.11989838,667.01,666.38,1.12108196]
[1748029220937,1.54832186,667.0,666.38,1.12108196]
[1748029221138,1.54832186,666.99,666.38,1.12108196]
[1748029221339,1.54832186,666.98,666.38,1.12108196]
[1748029221542,1.54821519,666.97,666.38,1.12108196]
[1748029221838,1.07159864,666.96,666.38,1.12108196]
[1748029222034,1.07159801,666.95,666.38,1.12108196]
[1748029222233,1.07159801,666.94,666.38,1.12108196]
[1748029222440,1.11989838,667.01,666.38,1.12108196]
[1748029222634,1.54796256,667.0,666.38,1.12108196]
[1748029222837,1.54796256,666.99,666.35,1.12108196]
[1748029223039,1.54796256,666.98,666.35,1.12108196]
[1748029223232,1.5476496,666.97,666.35,1.12108196]
[1748029223438,1.5476496,666.96,666.35,1.12108196]
[1748029223738,1.5476496,666.95,666.35,1.12108196]
[1748029223934,1.07124711,666.94,666.35,1.12108196]
[1748029224137,1.07124711,666.93,666.35,1.12108196]
[1748029224339,1.07124711,666.92,666.35,1.12108196]
[1748029224540,1.11989838,667.01,666.35,1.12108196]
[1748029224743,1.54720725,667.0,666.35,1.12108196]
[1748029224943,1.54720725,666.99,666.35,1.12108196]
[1748029225143,1.49319785,667.16,665.52,3.73693989]
[1748029225144,1.54719708,666.98,666.31,1.12108196]
[1748029225341,1.54719708,666.97,666.31,1.12108196]
[1748029225537,1.54719708,666.96,666.31,1.12108196]
[1748029225841,1.07093403,666.95,666.31,1.12108196]
[1748029226041,1.07093403,666.94,666.31,1.12108196]
[1748029226240,1.07093403,666.93,666.31,1.12108196]
[1748029226438,1.11989838,667.02,666.31,1.12108196]
[1748029226642,1.54678747,667.01,666.31,1.12108196]
[1748029226943,1.54679057,667.0,666.31,1.12108196]
[1748029227142,1.54679057,666.99,666.31,1.12108196]
[1748029227342,1.54679057,666.98,666.31,1.12108196]
[1748029227542,1.54679057,666.97,666.31,1.12108196]
[1748029227743,1.11989838,667.02,666.31,1.12108196]
[1748029227744,1.07065011,666.96,666.31,1.12108196]
[1748029228038,1.07065011,666.95,666.31,1.12108196]
[1748029228242,1.07065011,666.94,666.31,1.12108196]
[1748029228439,1.11989838,667.02,666.31,1.12108196]
[1748029228639,2.66642313,667.01,666.31,1.12108196]
[1748029228843,1.54652475,667.0,666.31,1.12108196]
[1748029229042,1.54652475,666.99,666.31,1.12108196]
[1748029229238,1.54652475,666.98,666.31,1.12108196]
[1748029229439,1.54652475,666.97,666.31,1.12108196]
[1748029229639,1.07046853,666.96,666.31,1.12108196]
[1748029229947,1.11989838,667.01,666.31,1.12108196]
[1748029229948,1.07046853,666.95,666.31,1.12108196]
[1748029230142,1.07046853,666.94,666.31,1.12108196]
[1748029230347,1.11989838,667.01,666.31,1.12108196]
[1748029230548,1.54631505,667.0,666.31,1.12108196]
[1748029230747,1.54631505,666.99,666.31,1.12108196]
[1748029230949,1.54631505,666.98,666.31,1.12108196]
[1748029231149,1.07032293,666.97,666.31,1.12108196]
[1748029231449,1.07032293,666.96,666.31,1.12108196]
[1748029231748,1.07032293,666.95,666.31,1.12108196]
[1748029231949,1.07032293,666.94,666.31,1.12108196]
[1748029232149,1.11989838,667.02,666.31,1.12108196]
[1748029232349,1.54615359,667.01,666.31,1.12108196]
[1748029232549,1.54615359,667.0,666.31,1.12108196]
[1748029232748,1.54615359,666.99,666.31,1.12108196]
[1748029232947,1.54615359,666.98,666.31,1.12108196]
[1748029233148,1.07020977,666.97,666.31,1.12108196]
[1748029233349,1.07020977,666.96,666.31,1.12108196]
[1748029233548,1.07020977,666.95,666.31,1.12108196]
[1748029233747,1.11989838,667.02,666.31,1.12108196]
[1748029233946,1.54601666,667.01,666.31,1.12108196]
[1748029234148,1.5460237,667.0,666.31,1.12108196]
[1748029234350,1.5460237,666.99,666.31,1.12108196]
[1748029234546,1.070124,666.98,666.31,1.12108196]
[1748029234745,1.070124,666.97,666.3,1.12108196]
[1748029234949,1.070124,666.96,666.3,1.12108196]
[1748029235148,1.11989838,667.03,666.3,1.12108196]
[1748029235149,1.070124,666.95,666.3,1.12108196]
[1748029235351,1.11989838,667.03,666.3,1.12108196]
[1748029235551,1.54579511,667.02,666.3,1.12108196]
[1748029235752,1.11989838,667.03,666.3,1.12108196]
[1748029235753,1.54579511,667.01,666.3,1.12108196]
[1748029235950,1.54579511,667.0,666.3,1.12108196]
[1748029236153,1.54579511,666.99,666.3,1.12108196]
[1748029236348,1.06996366,666.98,666.3,1.12108196]
[1748029236553,1.06996366,666.97,666.3,1.12108196]
[1748029236750,1.06996366,666.96,666.3,1.12108196]
[1748029236954,1.11989838,667.03,666.3,1.12108196]
[1748029237151,1.54569248,667.02,666.3,1.12108196]
[1748029237356,1.54569248,667.01,666.3,1.12108196]
[1748029237658,1.54569248,667.0,666.3,1.12108196]
[1748029237853,1.11989838,667.03,666.3,1.12108196]
[1748029237854,1.54563451,666.99,666.3,1.12108196]
[1748029238058,1.06985229,666.98,666.3,1.12108196]
[1748029238254,1.06985229,666.97,666.3,1.12108196]
[1748029238458,1.06985229,666.96,666.3,1.12108196]
[1748029238659,1.11989838,667.03,666.3,1.12108196]
[1748029238860,1.54550361,667.02,666.3,1.12108196]
[1748029239057,1.54550361,667.01,666.3,1.12108196]
[1748029239258,1.54550361,667.0,666.3,1.12108196]
[1748029239454,1.0697617,666.99,666.3,1.12108196]
[1748029239658,1.0697617,666.98,666.3,1.12108196]
[1748029239958,1.0697617,666.97,666.3,1.12108196]
[1748029240158,1.0697617,666.96,666.3,1.12108196]
[1748029240358,1.11989838,667.06,666.27,1.12108196]
[1748029240560,1.603,666.95,666.27,1.12108196]
[1748029246064,1.603,666.95,666.32,1.12108196]
[1748029249067,1.603,666.95,666.27,1.12108196]
[1748029254869,1.603,666.95,666.26,1.12108196]
[1748029257873,1.603,666.95,666.33,1.12108196]
[1748029260170,1.603,666.95,666.37,1.12108196]
[1748029263180,1.603,666.95,666.39,1.12108196]
[1748029267181,1.603,666.95,666.43,1.12108196]
[1748029269382,1.603,666.95,666.44,1.12108196]
[1748029272082,1.603,666.95,666.61,1.12108196]
[1748029274883,1.603,666.95,666.63,1.12108196]
[1748029278393,1.603,666.95,666.6,1.12108196]
[1748029278592,1.11989838,667.28,666.6,1.12108196]
[1748029278792,1.54751772,667.27,666.6,1.12108196]
[1748029278992,1.11989838,667.28,666.6,1.12108196]
[1748029278993,1.54751998,667.26,666.6,1.12108196]
[1748029279193,1.54751998,667.25,666.6,1.12108196]
[1748029279393,1.54751998,667.24,666.6,1.12108196]
[1748029279591,1.07146829,667.23,666.6,1.12108196]
[1748029279894,1.07146829,667.22,666.6,1.12108196]
[1748029282797,1.679,667.21,666.58,1.12108196]
[1748029283799,1.679,667.21,666.55,1.12108196]
[1748029287805,1.679,667.21,666.57,1.12108196]
[1748029289507,1.679,667.21,666.61,1.12108196]
[1748029292308,1.679,667.21,666.63,1.12108196]
[1748029293406,1.11989838,667.4,666.63,1.12108196]
[1748029295209,1.459,667.39,666.63,1.12108196]
[1748029302620,1.459,667.39,666.66,1.12108196]
[1748029308124,1.459,667.39,666.65,1.12108196]
[1748029309017,1.0679424,667.38,666.65,1.12108196]
[1748029309221,1.0679424,667.37,666.65,1.12108196]
[1748029309424,1.459,667.39,666.65,1.12108196]
[1748029309621,1.06811001,667.38,666.65,1.12108196]
[1748029309816,1.06811001,667.37,666.65,1.12108196]
[1748029310017,1.459,667.39,666.65,1.12108196]
[1748029310219,1.06811453,667.38,666.65,1.12108196]
[1748029310420,1.06811453,667.37,666.65,1.12108196]
[1748029310621,0.29962097,667.51,666.65,1.12108196]
[1748029310823,1.5429142,667.5,666.65,1.12108196]
[1748029311017,1.5429142,667.49,666.65,1.12108196]
[1748029311217,1.5429142,667.48,666.65,1.12108196]
[1748029311420,1.5429142,667.47,666.55,1.12108196]
[1748029311617,1.5429142,667.46,666.55,1.12108196]
[1748029311822,1.54298884,667.45,666.55,1.12108196]
[1748029312022,1.54298884,667.44,666.55,1.12108196]
[1748029312223,1.54298884,667.43,666.55,1.12108196]
[1748029312418,2.94532391,667.42,666.55,1.12108196]
[1748029312721,1.54332391,667.41,666.55,1.12108196]
[1748029312918,1.402,667.42,666.55,1.12108196]
[1748029313122,1.54339748,667.41,666.55,1.12108196]
[1748029313322,1.54339748,667.4,666.55,1.12108196]
[1748029313624,1.06878463,667.39,666.55,1.12108196]
[1748029313817,1.06878463,667.38,666.55,1.12108196]
[1748029314017,1.06878463,667.37,666.53,1.12108196]
[1748029314220,1.06878463,667.36,666.53,1.12108196]
[1748029314418,1.402,667.42,666.53,1.12108196]
[1748029314619,1.54389893,667.41,666.53,1.12108196]
[1748029314823,1.54389893,667.4,666.53,1.12108196]
[1748029315020,1.06892602,667.39,666.53,1.12108196]
[1748029315220,1.06892602,667.38,666.53,1.12108196]
[1748029315420,1.402,667.42,666.53,1.12108196]
[1748029315623,1.5442351,667.41,666.53,1.12108196]
[1748029315822,1.5442351,667.4,666.53,1.12108196]
[1748029316024,1.54423515,667.39,666.53,1.12108196]
[1748029316221,1.06915924,667.38,666.53,1.12108196]
[1748029316420,1.06915924,667.37,666.53,1.12108196]
[1748029316621,1.06915924,667.36,666.55,1.12108196]
[1748029316824,1.06915924,667.35,666.55,1.12108196]
[1748029317023,1.402,667.42,666.55,1.12108196]
[1748029317219,1.5445966,667.41,666.55,1.12108196]
[1748029317423,1.5445966,667.4,666.55,1.12108196]
[1748029317624,1.54481644,667.39,666.55,1.12108196]
[1748029317823,1.06962896,667.38,666.55,1.12108196]
[1748029318024,1.06962896,667.37,666.55,1.12108196]
[1748029318220,1.06962896,667.36,666.55,1.12108196]
[1748029318523,1.402,667.42,666.55,1.12108196]
[1748029318825,1.54513508,667.41,666.55,1.12108196]
[1748029319025,1.06978362,667.4,666.55,1.12108196]
[1748029319225,1.06978362,667.39,666.57,1.12108196]
[1748029319426,1.06978362,667.38,666.57,1.12108196]
[1748029319626,1.06978362,667.37,666.57,1.12108196]
[1748029319828,1.402,667.42,666.57,1.12108196]
[1748029320028,1.54539516,667.41,666.57,1.12108196]
[1748029320220,1.54539516,667.4,666.57,1.12108196]
[1748029320424,1.06996442,667.39,666.57,1.12108196]
[1748029320627,1.06996442,667.38,666.57,1.12108196]
[1748029320825,1.06996442,667.37,666.57,1.12108196]
[1748029321022,1.402,667.42,666.57,1.12108196]
[1748029321223,1.54539568,667.41,666.57,1.12108196]
[1748029321424,1.54539568,667.4,666.57,1.12108196]
[1748029321626,1.06996476,667.39,666.6,1.12108196]
[1748029321826,1.06996476,667.38,666.6,1.12108196]
[1748029322027,1.06996476,667.37,666.6,1.12108196]
[1748029322228,1.402,667.42,666.6,1.12108196]
[1748029322423,0.47558798,667.41,666.6,1.12108196]
[1748029322622,0.47558798,667.4,666.6,1.12108196]
[1748029322823,1.07035942,667.39,666.6,1.12108196]
[1748029323025,1.07035942,667.38,666.6,1.12108196]
[1748029323222,1.07035942,667.37,666.6,1.12108196]
[1748029323523,1.07035942,667.36,666.6,1.12108196]
[1748029323828,1.07058875,667.35,666.6,1.12108196]
[1748029324021,1.402,667.42,666.6,1.12108196]
[1748029324223,1.54630627,667.41,666.6,1.12108196]
[1748029324425,1.54649635,667.4,666.6,1.12108196]
[1748029324721,1.54649635,667.39,666.6,1.12108196]
[1748029324926,1.54649635,667.38,666.6,1.12108196]
[1748029325124,1.07078552,667.37,666.63,1.12108196]
[1748029325323,1.07078552,667.36,666.63,1.12108196]
[1748029325530,1.07078552,667.35,666.63,1.12108196]
[1748029325723,1.07078552,667.34,666.63,1.12108196]
[1748029325929,1.07078552,667.33,666.63,1.12108196]
[1748029326131,1.402,667.42,666.63,1.12108196]
[1748029326328,1.54697619,667.41,666.63,1.12108196]
[1748029326526,1.54697619,667.4,666.63,1.12108196]
[1748029326729,1.54697619,667.39,666.63,1.12108196]
[1748029327029,1.54697619,667.38,666.63,1.12108196]
[1748029327226,1.54697619,667.37,666.63,1.12108196]
[1748029327427,1.54697619,667.36,666.63,1.12108196]
[1748029327631,1.54697619,667.35,666.63,1.12108196]
[1748029327926,1.54722083,667.34,666.63,1.12108196]
[1748029328131,1.54776214,667.33,666.65,1.12108196]
[1748029328329,1.54776214,667.32,666.65,1.12108196]
[1748029328534,1.54776214,667.31,666.65,1.12108196]
[1748029328735,1.503,667.42,666.65,1.12108196]
[1748029329034,1.54825088,667.41,666.65,1.12108196]
[1748029329228,1.54825088,667.4,666.65,1.12108196]
[1748029329430,1.54825088,667.39,666.65,1.12108196]
[1748029329633,1.54825088,667.38,666.65,1.12108196]
[1748029329833,1.54839022,667.37,666.65,1.12108196]
[1748029330035,1.54839022,667.36,666.65,1.12108196]
[1748029330236,1.54839022,667.35,666.65,1.12108196]
[1748029330436,1.54839022,667.34,666.65,1.12108196]
[1748029330736,1.54839022,667.33,666.68,1.12108196]
[1748029330935,1.54839022,667.32,666.68,1.12108196]
[1748029331136,1.54839022,667.31,666.68,1.12108196]
[1748029331439,1.54839022,667.3,666.68,1.12108196]
[1748029331635,1.0719745,667.29,666.68,1.12108196]
[1748029331936,1.0719745,667.28,666.68,1.12108196]
[1748029332230,1.0719745,667.27,666.68,1.12108196]
[1748029332432,1.0719745,667.26,666.68,1.12108196]
[1748029332635,1.11989838,667.37,666.68,1.12108196]
[1748029332838,1.54960854,667.36,666.68,1.12108196]
[1748029333038,1.11989838,667.31,666.75,1.12108196]
[1748029333238,1.54960854,667.3,666.75,1.12108196]
[1748029333538,1.54965052,667.29,666.75,1.12108196]
[1748029333741,1.07291552,667.28,666.75,1.12108196]
[1748029333941,1.07291552,667.27,666.75,1.12108196]
[1748029334238,1.07291552,667.26,666.75,1.12108196]
[1748029334438,1.07291552,667.25,666.75,1.12108196]
[1748029334638,1.11989838,667.31,666.75,1.12108196]
[1748029334839,1.54991444,667.3,666.75,1.12108196]
[1748029335034,1.54991444,667.29,666.75,1.12108196]
[1748029335333,1.07312711,667.28,666.75,1.12108196]
[1748029335534,1.07312711,667.27,666.75,1.12108196]
[1748029335739,1.07312711,667.26,666.75,1.12108196]
[1748029335935,1.07312711,667.25,666.75,1.12108196]
[1748029336139,1.11989838,667.31,666.75,1.12108196]
[1748029336339,1.54999363,667.3,666.75,1.12108196]
[1748029336542,1.54999363,667.29,666.75,1.12108196]
[1748029336741,1.07318205,667.28,666.72,1.12108196]
[1748029336940,1.07318205,667.27,666.72,1.12108196]
[1748029337142,1.07318205,667.26,666.72,1.12108196]
[1748029337342,1.07318205,667.25,666.72,1.12108196]
[1748029337538,1.07318205,667.24,666.72,1.12108196]
[1748029337740,1.07333843,667.23,666.72,1.12108196]
[1748029337944,1.11989838,667.33,666.72,1.12108196]
[1748029338142,1.55023759,667.32,666.72,1.12108196]
[1748029338339,1.55023759,667.31,666.72,1.12108196]
[1748029338544,1.55031585,667.3,666.72,1.12108196]
[1748029338847,1.55031585,667.29,666.72,1.12108196]
[1748029339048,1.55031585,667.28,666.72,1.12108196]
[1748029339242,1.55031585,667.27,666.72,1.12108196]
[1748029339443,1.55031585,667.26,666.72,1.12108196]
[1748029339741,1.55031585,667.25,666.72,1.12108196]
[1748029339943,1.55031585,667.24,666.65,1.12108196]
[1748029340143,1.07342786,667.23,666.65,1.12108196]
[1748029340349,1.55059844,667.22,666.65,1.12108196]
[1748029340643,1.55059844,667.21,666.65,1.12108196]
[1748029340841,1.11989838,667.33,666.65,1.12108196]
[1748029340842,1.55059844,667.2,666.65,1.12108196]
[1748029341043,1.55059844,667.19,666.65,1.12108196]
[1748029341244,1.07359556,667.18,666.65,1.12108196]
[1748029341543,1.07359556,667.17,666.65,1.12108196]
[1748029341746,1.07359556,667.16,666.65,1.12108196]
[1748029341944,1.07359556,667.15,666.65,1.12108196]
[1748029342144,1.11989838,667.33,666.65,1.12108196]
[1748029342348,1.11989838,667.25,666.61,1.12108196]
[1748029342549,1.55064548,667.24,666.61,1.12108196]
[1748029342750,1.55064548,667.23,666.61,1.12108196]
[1748029342951,1.55064548,667.22,666.61,1.12108196]
[1748029343152,1.55064548,667.21,666.61,1.12108196]
[1748029343349,1.55064548,667.2,666.61,1.12108196]
[1748029343547,1.55064548,667.19,666.61,1.12108196]
[1748029343749,1.55064548,667.18,666.61,1.12108196]
[1748029343947,1.11989838,667.25,666.61,1.12108196]
[1748029344153,1.55066872,667.24,666.61,1.12108196]
[1748029344354,1.55066872,667.23,666.61,1.12108196]
[1748029344552,1.55066872,667.22,666.61,1.12108196]
[1748029344753,1.55066872,667.21,666.61,1.12108196]
[1748029345052,1.55066872,667.2,666.61,1.12108196]
[1748029345248,1.55066872,667.19,666.61,1.12108196]
[1748029345452,1.55066872,667.18,666.61,1.12108196]
[1748029345652,1.07363954,667.17,666.61,1.12108196]
[1748029345853,1.07356149,667.16,666.61,1.12108196]
[1748029346054,1.07356149,667.15,666.61,1.12108196]
[1748029346251,1.07356149,667.14,666.61,1.12108196]
[1748029346447,1.158,667.18,666.61,1.12108196]
[1748029346654,1.07350247,667.17,666.61,1.12108196]
[1748029346853,1.07350247,667.16,666.61,1.12108196]
[1748029347054,1.07350247,667.15,666.61,1.12108196]
[1748029347248,1.07350247,667.14,666.61,1.12108196]
[1748029347453,1.158,667.18,666.61,1.12108196]
[1748029347648,1.55040225,667.17,666.61,1.12108196]
[1748029347850,1.55040225,667.16,666.63,1.12108196]
[1748029348055,1.55041171,667.15,666.63,1.12108196]
[1748029348254,1.0734477,667.14,666.63,1.12108196]
[1748029348454,1.0734477,667.13,666.63,1.12108196]
[1748029348655,1.0734477,667.12,666.63,1.12108196]
[1748029348956,1.0733556,667.11,666.63,1.12108196]
[1748029349156,1.158,667.18,666.63,1.12108196]
[1748029349555,1.55022953,667.17,666.63,1.12108196]
[1748029349757,1.55022953,667.16,666.63,1.12108196]
[1748029349955,1.07333233,667.15,666.63,1.12108196]
[1748029350159,1.07333233,667.14,666.63,1.12108196]
[1748029350353,1.07333233,667.13,666.63,1.12108196]
[1748029350553,1.07333233,667.12,666.63,1.12108196]
[1748029350754,1.158,667.18,666.63,1.12108196]
[1748029350959,1.54989839,667.17,666.58,1.12108196]
[1748029351259,1.54989839,667.16,666.58,1.12108196]
[1748029351462,1.07310262,667.15,666.58,1.12108196]
[1748029351662,1.07310262,667.14,666.58,1.12108196]
[1748029351961,1.07310262,667.13,666.58,1.12108196]
[1748029352156,1.158,667.18,666.58,1.12108196]
[1748029352358,1.5497155,667.17,666.58,1.12108196]
[1748029352556,1.07297664,667.16,666.58,1.12108196]
[1748029352760,1.07297664,667.15,666.58,1.12108196]
[1748029352960,1.07297664,667.14,666.58,1.12108196]
[1748029353159,1.07291649,667.13,666.58,1.12108196]
[1748029353359,1.158,667.18,666.56,1.12108196]
[1748029353561,1.54966369,667.17,666.56,1.12108196]
[1748029353763,1.07294044,667.16,666.56,1.12108196]
[1748029353961,1.07294044,667.15,666.56,1.12108196]
[1748029354160,1.54963805,667.14,666.56,1.12108196]
[1748029354362,1.54963805,667.13,666.56,1.12108196]
[1748029354658,1.07294044,667.12,666.56,1.12108196]
[1748029354857,1.07294044,667.11,666.56,1.12108196]
[1748029355057,1.07294044,667.1,666.56,1.12108196]
[1748029355260,1.07294044,667.09,666.56,1.12108196]
[1748029355460,1.07518267,667.08,666.56,1.12108196]
[1748029355757,1.158,667.18,666.56,1.12108196]
[1748029355957,1.55181449,667.17,666.56,1.12108196]
[1748029356159,1.55181449,667.16,666.56,1.12108196]
[1748029356358,1.55181449,667.15,666.56,1.12108196]
[1748029356563,1.55181449,667.14,666.56,1.12108196]
[1748029356866,1.55177609,667.13,666.52,1.12108196]
[1748029357063,1.07517992,667.12,666.52,1.12108196]
[1748029357263,1.07517992,667.11,666.52,1.12108196]
[1748029357467,1.07517992,667.1,666.52,1.12108196]
[1748029357763,1.07517992,667.09,666.52,1.12108196]
[1748029357964,1.11989838,667.17,666.52,1.12108196]
[1748029358160,1.5517474,667.16,666.52,1.12108196]
[1748029358360,1.5517474,667.15,666.52,1.12108196]
[1748029358566,1.55168537,667.14,666.52,1.12108196]
[1748029358865,1.07512022,667.13,666.52,1.12108196]
[1748029359065,1.07512022,667.12,666.52,1.12108196]
[1748029359263,1.07512022,667.11,666.52,1.12108196]
[1748029359462,1.07512022,667.1,666.57,1.12108196]
[1748029359662,1.07509311,667.09,666.57,1.12108196]
[1748029359967,1.158,667.18,666.57,1.12108196]
[1748029360168,1.55071401,667.17,666.57,1.12108196]
[1748029360360,1.55071401,667.16,666.57,1.12108196]
[1748029360561,1.55071401,667.15,666.57,1.12108196]
[1748029360762,1.55071401,667.14,666.57,1.12108196]
[1748029361066,1.55071401,667.13,666.57,1.12108196]
[1748029361262,1.0751046,667.12,666.57,1.12108196]
[1748029361466,1.0751046,667.11,666.57,1.12108196]
[1748029361666,1.0751046,667.1,666.57,1.12108196]
[1748029361965,1.0751046,667.09,666.57,1.12108196]
[1748029362168,1.158,667.18,666.57,1.12108196]
[1748029362368,1.55064897,667.17,666.57,1.12108196]
[1748029362569,1.55064897,667.16,666.57,1.12108196]
[1748029362766,1.55064897,667.15,666.57,1.12108196]
[1748029362971,1.55064897,667.14,666.57,1.12108196]
[1748029363171,1.55064897,667.13,666.57,1.12108196]
[1748029363365,1.07505928,667.12,666.57,1.12108196]
[1748029363569,1.158,667.18,666.57,1.12108196]
[1748029363570,1.07505928,667.11,666.57,1.12108196]
[1748029363866,1.07505928,667.1,666.57,1.12108196]
[1748029364069,1.0750569,667.09,666.57,1.12108196]
[1748029364268,1.158,667.18,666.57,1.12108196]
[1748029364466,1.55075707,667.17,666.57,1.12108196]
[1748029364767,1.55075707,667.16,666.57,1.12108196]
[1748029364965,1.55075707,667.15,666.57,1.12108196]